[Event "WCCC U10 2019"]
[Site "Weifang"]
[Date "2019.08.30"]
[Round "9.10"]
[White "Lu, Miaoyi"]
[Black "Renji, Rafael Ninan"]
[Result "1-0"]
[ECO "E62"]
[WhiteElo "1950"]
[BlackElo "1446"]
[Annotator "NA"]
[PlyCount "247"]
[EventDate "2019.08.21"]
[EventType "swiss"]
[EventCountry "CHN"]
[SourceTitle "playchess.com"]
[Source "ChessBase"]
[SourceQuality "1"]
[TimeControl "40/5400+30:1800+30"]

1. d4 {[%emt 0:00:00]} Nf6 {[%emt 0:00:00]} 2. c4 {[%emt 0:00:00]} g6 {[%emt 0:00:00]} 3. g3 {[%emt 0:00:00]} Bg7 {[%emt 0:00:00]} 4. Bg2 {[%emt 0:00:00]} O-O {[%emt 0:00:06]} 5. Nc3 {[%emt 0:00:00]} d6 {[%emt 0:00:52]} 6. Nf3 {[%emt 0:00:00]} c6 {[%emt 0:01:32]} 7. O-O {[%emt 0:00:08]} d5 {[%emt 0:04:11] E62: King's Indian: Fianchetto: 6...c6 and Panno Variation (6...Nc6) without ...a6} (7... Bf5 8. Ne1 d5 9. Nc2 Qd7 10. Ne3 Be6 11. b3 Bh3 12. Bxh3 Qxh3 13. Ba3 Qd7 14. Qd3 Rd8 15. Rad1 Na6 16. Nc2 {1-0 (64) Bu,X (2731)-Aravindh,C (2599) Astana 2019}) 8. cxd5 {[%emt 0:02:44]} Nxd5 {[%emt 0:01:35]} 9. Nxd5 {[%emt 0:10:08]} (9. e4 $14 Nxc3 10. bxc3) 9... cxd5 {[%emt 0:00:46]} 10. Ne5 $146 {[%emt 0:01:38]} ({Predecessor:} 10. Re1 Bf5 11. Qb3 Bc8 12. e3 Na6 13. Bd2 Nc7 14. Rac1 b6 15. Qc2 {1-0 (53) Lopez Valverde,R-Jimenez Bandera,M Malaga 2000}) 10... e6 {[%emt 0:02:23]} 11. f4 {[%emt 0:05:42]} Nd7 {[%emt 0:02:37]} 12. b3 {[%emt 0:02:34]} f5 {[%emt 0:05:04]} 13. a4 {[%emt 0:08:51]} Nxe5 {[%emt 0:04:44]} 14. fxe5 {[%emt 0:01:04]} Rf7 {[%emt 0:07:00]} 15. Ba3 {[%emt 0:03:37]} Bd7 {[%emt 0:05:01]} 16. Rc1 {[%emt 0:01:48]} Bc6 {[%emt 0:03:39]} (16... b5 $15) 17. Bd6 {[%emt 0:08:14]} Qg5 {[%emt 0:03:20]} 18. Rc3 {[%emt 0:03:35]} Bf8 {[%emt 0:02:59]} 19. Bxf8 {[%emt 0:02:54]} Raxf8 {[%emt 0:01:48]} 20. e3 {[%emt 0:03:22]} h5 {[%emt 0:06:59]} 21. b4 {[%emt 0:08:53]} a6 {[%emt 0:03:09]} 22. Qb3 {[%emt 0:11:15]} h4 {[%emt 0:04:38]} 23. b5 {[%emt 0:01:10]} axb5 {[%emt 0:01:40]} 24. axb5 {[%emt 0:00:08]} Be8 {[%emt 0:01:07]} 25. Rf3 {[%emt 0:03:26]} Rh7 {[%emt 0:02:05]} 26. Rc8 {[%emt 0:01:41]} hxg3 {[%emt 0:02:20]} 27. hxg3 {[%emt 0:00:52]} Qh6 {[%emt 0:02:58]} 28. Qb4 {[%emt 0:03:21]} g5 {[%emt 0:04:59]} 29. Qd6 {[%emt 0:03:52]} g4 {[%emt 0:02:34]} 30. Rf4 {[%emt 0:00:53]} Bf7 {[%emt 0:04:48]} 31. Rxf8+ {[%emt 0:07:46]} Qxf8 {[%emt 0:00:19]} 32. Qxf8+ {[%emt 0:01:10]} Kxf8 {[%emt 0:00:38]} 33. b6 {[%emt 0:02:01]} Ke7 {[%emt 0:03:28]} 34. Rf2 {[%emt 0:00:45]} Be8 {[%emt 0:00:55]} 35. Bf1 {[%emt 0:01:50]} Rh8 {[%emt 0:01:31]} 36. Ra2 {[%emt 0:01:06]} Bc6 {[%emt 0:00:35]} 37. Ra7 {[%emt 0:00:34]} Kd7 {[%emt 0:00:44]} 38. Ba6 {[%emt 0:00:44]} Rb8 {[%emt 0:00:33]} 39. Kf2 {[%emt 0:00:17]} Kd8 {[%emt 0:01:05]} 40. Bd3 {[%emt 0:00:25]} Kd7 {[%emt 0:00:36]} 41. Ra1 {[%emt 0:05:47]} Rh8 {[%emt 0:00:33]} 42. Kg2 {[%emt 0:00:34]} Ke7 {[%emt 0:00:46]} 43. Ra7 {[%emt 0:04:14]} Kd7 {[%emt 0:01:56]} 44. Be2 {[%emt 0:01:13]} Rg8 {[%emt 0:01:35]} 45. Kf2 {[%emt 0:05:05]} Rh8 {[%emt 0:01:06]} 46. Kg1 {[%emt 0:01:18]} Rg8 {[%emt 0:01:12]} 47. Ba6 {[%emt 0:01:50]} Rb8 {[%emt 0:01:03]} 48. Kf2 {[%emt 0:00:40]} Kd8 {[%emt 0:00:42]} 49. Bd3 {[%emt 0:00:49]} Kd7 {[%emt 0:00:31]} 50. Kg2 {[%emt 0:02:38]} Ke7 {[%emt 0:00:50]} 51. Be2 {[%emt 0:02:17]} Kd7 {[%emt 0:01:10]} 52. Bd3 {[%emt 0:01:59]} Ke7 {[%emt 0:00:14]} 53. Kf2 {[%emt 0:00:22]} Rh8 {[%emt 0:04:07]} 54. Kg1 {[%emt 0:01:36]} Kd7 {[%emt 0:00:42]} 55. Ba6 {[%emt 0:00:19]} Rb8 {[%emt 0:00:09]} 56. Kf1 {[%emt 0:01:14]} Kd8 {[%emt 0:00:39]} 57. Bd3 {[%emt 0:00:13]} Kd7 {[%emt 0:00:39]} 58. Ra2 {[%emt 0:00:22]} Rh8 {[%emt 0:00:32]} 59. Kg1 {[%emt 0:00:26]} Ke7 {[%emt 0:00:34]} 60. Ra1 {[%emt 0:01:33]} Kd7 {[%emt 0:01:19]} 61. Kg2 {[%emt 0:01:26]} Ke7 {[%emt 0:00:41]} 62. Kg1 {[%emt 0:00:32]} Kd7 {[%emt 0:00:11]} 63. Ra7 {[%emt 0:00:29]} Rg8 {[%emt 0:00:53]} 64. Be2 {[%emt 0:00:14]} Rh8 {[%emt 0:00:45]} 65. Kg2 {[%emt 0:00:25]} Rg8 {[%emt 0:00:15]} 66. Ba6 {[%emt 0:00:54]} Rb8 {[%emt 0:01:02]} 67. Kf2 {[%emt 0:00:19]} Kd8 {[%emt 0:00:36]} 68. Be2 {[%emt 0:00:14]} Kd7 {[%emt 0:00:12]} 69. Bd3 {[%emt 0:00:43]} Rh8 {[%emt 0:00:54]} 70. Ba6 {[%emt 0:01:11]} Rb8 {[%emt 0:00:12]} 71. Ke2 {[%emt 0:00:38]} Kd8 {[%emt 0:01:27]} 72. Bd3 {[%emt 0:00:05]} Kd7 {[%emt 0:00:35]} 73. Kf2 {[%emt 0:02:58]} Ke7 {[%emt 0:01:12]} 74. Ba6 {[%emt 0:00:29]} Kd8 {[%emt 0:00:11]} 75. Be2 {[%emt 0:00:09]} Ke7 {[%emt 0:00:12]} 76. Kg1 {[%emt 0:00:34]} Kd7 {[%emt 0:00:12]} 77. Kg2 {[%emt 0:00:23]} Ke7 {[%emt 0:00:27]} 78. Ra5 {[%emt 0:00:30]} Kd7 {[%emt 0:00:25]} 79. Ra1 {[%emt 0:00:24]} Rh8 {[%emt 0:00:24]} 80. Bd3 {[%emt 0:00:15]} Ke7 {[%emt 0:01:09]} 81. Ra2 {[%emt 0:00:43]} Rg8 {[%emt 0:00:59]} 82. Be2 {[%emt 0:00:20]} Rh8 {[%emt 0:00:42]} 83. Ra7 {[%emt 0:00:58]} Rb8 {[%emt 0:01:31]} 84. Kf2 {[%emt 0:00:44]} Kd7 {[%emt 0:01:09]} 85. Bd3 {[%emt 0:01:09]} Rh8 {[%emt 0:02:31]} 86. Ba6 {[%emt 0:00:25]} Rh2+ {[%emt 0:01:54]} 87. Kg1 {[%emt 0:00:22]} Ra2 {[%emt 0:00:53] [#]} 88. Bb5 $1 {[%emt 0:00:26]} Rc2 $2 {[%emt 0:02:30]} (88... Ra1+ $11 89. Rxa1 Bxb5) 89. Rxb7+ $1 {[%emt 0:00:18]} Kd8 {[%emt 0:01:18]} 90. Rc7 {[%emt 0:01:00]} Rb2 {[%emt 0:03:15]} 91. Bxc6 {[%emt 0:01:19]} Rxb6 {[%emt 0:00:35]} 92. Rd7+ {[%emt 0:00:06]} Kc8 {[%emt 0:00:13]} 93. Rd6 {[%emt 0:00:09]} ({Weaker is} 93. Ba4 Ra6 $16) 93... Kc7 {[%emt 0:00:22]} 94. Rxe6 {[%emt 0:00:41]} Rxc6 {[%emt 0:00:44]} 95. Rxc6+ $18 {[%emt 0:00:26]} Kxc6 {[%emt 0:00:05]} 96. Kf2 {[%emt 0:00:06]} Kb5 {[%emt 0:00:40]} 97. Ke2 {[%emt 0:00:04]} Kb6 {[%emt 0:00:37]} 98. Kd3 {[%emt 0:00:03]} Kc6 {[%emt 0:00:07]} 99. Kc3 {[%emt 0:00:09]} Kb5 {[%emt 0:00:23]} 100. Kb3 {[%emt 0:00:02]} Kc6 {[%emt 0:00:08]} 101. Ka4 {[%emt 0:00:02]} Kb6 {[%emt 0:00:26]} 102. Kb4 {[%emt 0:00:02]} Kc6 {[%emt 0:00:18]} 103. Ka5 {[%emt 0:00:03]} Kd7 {[%emt 0:00:43]} 104. Kb6 {[%emt 0:00:04]} Ke7 {[%emt 0:00:08]} 105. Kc5 {[%emt 0:00:03]} Ke6 {[%emt 0:00:08]} 106. Kc6 {[%emt 0:00:03]} Ke7 {[%emt 0:00:15]} 107. Kxd5 {[%emt 0:00:04]} Kd7 {[%emt 0:00:08]} 108. e6+ {[%emt 0:00:02]} Ke7 {[%emt 0:00:10]} 109. Ke5 {[%emt 0:00:01]} Ke8 {[%emt 0:00:07]} 110. Kf6 {[%emt 0:00:06]} Kf8 {[%emt 0:00:07]} 111. d5 {[%emt 0:00:03]} f4 {[%emt 0:00:12]} 112. exf4 {[%emt 0:00:08]} Ke8 {[%emt 0:00:09]} 113. e7 {[%emt 0:00:07]} Kd7 {[%emt 0:00:05]} 114. Kf7 {[%emt 0:00:05]} Kd6 {[%emt 0:00:16]} 115. e8=Q {[%emt 0:00:07]} Kxd5 {[%emt 0:00:08]} 116. Qe5+ {[%emt 0:00:06]} Kc4 {[%emt 0:00:05]} 117. Qd6 {[%emt 0:00:03]} Kc3 {[%emt 0:00:13]} 118. Ke6 {[%emt 0:00:04]} Kb3 {[%emt 0:00:04]} 119. Qc5 {[%emt 0:00:03]} Kb2 {[%emt 0:00:07]} 120. Kd5 {[%emt 0:00:03]} Ka2 {[%emt 0:00:08]} 121. Qb4 {[%emt 0:00:04]} Ka1 {[%emt 0:00:13]} 122. Kc4 {[%emt 0:00:02]} Ka2 {[%emt 0:00:44]} 123. Kc3 {[%emt 0:00:02]} Ka1 {[%emt 0:00:13]} 124. Qb2# {[%emt 0:00:03]} 1-0

[Event "WCCC U10 2019"]
[Site "Weifang"]
[Date "2019.08.31"]
[Round "10.1"]
[White "Vetokhin, Savva"]
[Black "Sodbilegt, Naranbold"]
[Result "1-0"]
[ECO "B52"]
[WhiteElo "2016"]
[BlackElo "1458"]
[Annotator "NA"]
[PlyCount "53"]
[EventDate "2019.08.21"]
[EventType "swiss"]
[EventCountry "CHN"]
[SourceTitle "playchess.com"]
[Source "ChessBase"]
[SourceQuality "1"]
[TimeControl "40/5400+30:1800+30"]

1. e4 {[%emt 0:00:00]} c5 {[%emt 0:00:00]} 2. Nf3 {[%emt 0:00:00]} d6 {[%emt 0:00:00]} 3. Bb5+ {[%emt 0:00:00]} Bd7 {[%emt 0:00:00]} 4. Bxd7+ {[%emt 0:00:01]} Qxd7 {[%emt 0:00:01]} 5. O-O {[%emt 0:00:13]} Nc6 {[%emt 0:00:34]} 6. c3 {[%emt 0:00:26]} Nf6 {[%emt 0:00:39]} 7. Qe2 {[%emt 0:01:41]} e6 {[%emt 0:04:00]} 8. d4 {[%emt 0:00:20]} cxd4 {[%emt 0:01:08]} 9. cxd4 {[%emt 0:00:07]} Be7 {[%emt 0:00:37]} 10. Nc3 {[%emt 0:00:26]} O-O {[%emt 0:08:33]} 11. h3 {[%emt 0:05:18] B52: Sicilian: Moscow Variation with 3...Bd7} (11. Bg5 Rfe8 12. Rfd1 Rad8 13. a3 a6 14. b4 Rc8 15. Qd3 Red8 16. Rab1 b5 17. h3 Ne8 18. Bd2 Nc7 {½-½ (34) Benkiar,D (2031)-Bourkiza,H (1599) Tipaza 2019}) 11... Rac8 {[%emt 0:06:27]} 12. Bf4 $146 {[%emt 0:01:27]} ({Predecessor:} 12. Bg5 h6 13. Bh4 Nh5 14. Bxe7 Qxe7 15. Rac1 e5 16. Nd5 Qe6 17. dxe5 dxe5 18. Rfd1 Rfd8 {0-1 (28) Kopcova,L (1618)-Ambrozova,L (1480) Kouty nad Desnou 2014}) 12... d5 {[%emt 0:04:05]} 13. e5 {[%emt 0:00:37]} Ne8 {[%emt 0:01:12]} 14. h4 {[%emt 0:09:54]} a6 {[%emt 0:02:03]} 15. h5 {[%emt 0:00:33]} h6 {[%emt 0:01:10]} 16. Rac1 {[%emt 0:09:03]} b5 {[%emt 0:03:23]} 17. Nd1 {[%emt 0:07:37]} Nc7 {[%emt 0:10:14]} (17... f5 $11) 18. Ne3 {[%emt 0:00:50]} b4 {[%emt 0:01:46]} 19. Ng4 {[%emt 0:01:01]} Nb5 $18 {[%emt 0:02:30]} (19... Na5 $14) 20. Qe3 {[%emt 0:03:10]} Qa7 {[%emt 0:09:32]} 21. Rcd1 {[%emt 0:05:14]} Qb6 {[%emt 0:13:12]} 22. Bxh6 {[%emt 0:03:59]} gxh6 {[%emt 0:00:45]} 23. Qxh6 {[%emt 0:00:03]} f5 {[%emt 0:09:16]} 24. exf6 {[%emt 0:00:10]} Bxf6 {[%emt 0:02:21]} 25. Nxf6+ {[%emt 0:00:05]} Kf7 {[%emt 0:00:42]} 26. Ng5+ {[%emt 0:00:08]} Ke7 {[%emt 0:00:56]} 27. Qg7+ {[%emt 0:00:06]} 1-0

[Event "WCCC U10 2019"]
[Site "Weifang"]
[Date "2019.08.31"]
[Round "10.2"]
[White "Ilamparthi A R"]
[Black "Wei, Jianzhou"]
[Result "0-1"]
[ECO "A12"]
[WhiteElo "1984"]
[BlackElo "1656"]
[Annotator "NA"]
[PlyCount "162"]
[EventDate "2019.08.21"]
[EventType "swiss"]
[EventCountry "CHN"]
[SourceTitle "playchess.com"]
[Source "ChessBase"]
[SourceQuality "1"]
[TimeControl "40/5400+30:1800+30"]

1. Nf3 {[%emt 0:00:00]} d5 {[%emt 0:00:00]} 2. g3 {[%emt 0:00:00]} Nf6 {[%emt 0:00:00]} 3. Bg2 {[%emt 0:00:03]} Bf5 {[%emt 0:00:00]} 4. O-O {[%emt 0:00:07]} c6 {[%emt 0:00:01]} 5. d3 {[%emt 0:00:13]} h6 {[%emt 0:00:05]} 6. Nbd2 {[%emt 0:00:08]} e6 {[%emt 0:00:13]} 7. c4 {[%emt 0:00:23]} Be7 {[%emt 0:00:16]} 8. Rb1 {[%emt 0:00:32]} a5 {[%emt 0:00:42]} 9. b3 {[%emt 0:00:23]} O-O {[%emt 0:00:25]} 10. Bb2 {[%emt 0:00:32]} Na6 {[%emt 0:00:28]} 11. a3 {[%emt 0:01:31]} Bh7 {[%emt 0:04:11] A12: English Opening: 1...c6 with b3 by White} 12. Ne5 {[%emt 0:01:35]} Re8 $146 {[%emt 0:03:09]} ({Predecessor:} 12... Bd6 13. Qc1 Qe7 14. Ra1 Nc5 15. b4 axb4 16. axb4 Na6 17. c5 Bxe5 18. Bxe5 Rfd8 19. Qb2 {1-0 (40) Bruch,J (2305)-Stephan,U (1945) Ludwigshafen 1996}) 13. Ndf3 {[%emt 0:02:03]} Qc7 {[%emt 0:03:59]} 14. Qd2 {[%emt 0:01:38]} Rad8 {[%emt 0:03:32]} 15. Rfc1 {[%emt 0:01:08]} d4 {[%emt 0:10:34]} 16. Re1 {[%emt 0:24:47]} c5 {[%emt 0:08:04]} 17. e3 {[%emt 0:04:43]} dxe3 {[%emt 0:05:37]} (17... Nd7 $11 18. Nxd7 (18. exd4 Nxe5 19. Rxe5 Bf6 $11) 18... Rxd7) 18. Qxe3 {[%emt 0:00:34]} Bd6 {[%emt 0:04:48]} 19. Rbc1 {[%emt 0:11:57]} Qe7 {[%emt 0:04:34]} 20. Rcd1 {[%emt 0:06:55]} Nb8 {[%emt 0:05:59]} 21. Qd2 {[%emt 0:07:14]} Bc7 {[%emt 0:03:41]} 22. Qc3 {[%emt 0:05:00]} Qf8 {[%emt 0:00:46]} 23. Nh4 {[%emt 0:02:17]} b6 {[%emt 0:01:31]} 24. Nhf3 {[%emt 0:05:09]} Bd6 {[%emt 0:04:49]} 25. h3 {[%emt 0:02:11]} Nfd7 {[%emt 0:02:03]} 26. Ng4 {[%emt 0:03:58]} f6 {[%emt 0:02:31]} 27. d4 {[%emt 0:01:36]} h5 {[%emt 0:04:45]} 28. Ngh2 {[%emt 0:01:13]} e5 {[%emt 0:03:15]} 29. d5 {[%emt 0:00:33]} e4 {[%emt 0:00:09]} 30. Nd2 {[%emt 0:00:50]} f5 {[%emt 0:00:50]} 31. h4 {[%emt 0:00:49]} Ne5 {[%emt 0:02:37]} 32. Bf1 {[%emt 0:00:45]} Nbd7 {[%emt 0:01:33]} 33. Be2 {[%emt 0:03:01]} ({White should try} 33. f4) 33... Nf6 {[%emt 0:00:13]} 34. Qe3 {[%emt 0:01:51]} Qf7 {[%emt 0:07:32]} 35. Qg5 {[%emt 0:01:15]} Bg6 {[%emt 0:01:13]} 36. Kh1 {[%emt 0:01:14]} Ned7 {[%emt 0:01:25]} 37. Qe3 {[%emt 0:00:52]} Nh7 {[%emt 0:04:48]} 38. f4 {[%emt 0:00:50]} exf3 {[%emt 0:01:32]} 39. Qxf3 {[%emt 0:00:04]} f4 {[%emt 0:00:27]} 40. gxf4 {[%emt 0:01:13]} Bxf4 {[%emt 0:00:05]} 41. Rf1 {[%emt 0:36:51]} Bxh2 {[%emt 0:32:39]} 42. Kxh2 {[%emt 0:00:23]} Qe7 {[%emt 0:00:03]} 43. Rf2 {[%emt 0:01:51]} Qxh4+ {[%emt 0:00:19]} 44. Kg2 {[%emt 0:00:06]} Qe7 {[%emt 0:06:03]} 45. Rg1 {[%emt 0:00:00]} Ng5 {[%emt 0:02:58]} 46. Qg3 {[%emt 0:00:00]} Nf8 {[%emt 0:00:00]} 47. Kh2 {[%emt 0:00:00]} Nfh7 {[%emt 0:00:00]} 48. Nf3 {[%emt 0:00:00]} Rf8 {[%emt 0:00:00]} 49. Rfg2 {[%emt 0:00:00]} h4 {[%emt 0:00:00]} 50. Nxh4 {[%emt 0:00:00]} Be4 {[%emt 0:00:00]} 51. Rf2 {[%emt 0:00:00]} (51. Bg4 $14 Qd6 52. Be6+ Nxe6 53. Be5) 51... Rxf2+ {[%emt 0:00:00]} 52. Qxf2 {[%emt 0:00:00]} Rf8 {[%emt 0:00:00]} 53. Qg3 {[%emt 0:00:00]} Bxd5 {[%emt 0:00:00]} 54. Bd3 {[%emt 0:00:00]} Be4 {[%emt 0:00:00]} ({Better is} 54... Bc6 $15 55. Bc3 (55. Ng6 $2 Qe6 $19) 55... Rf3 56. Nxf3 (56. Bxh7+ $2 Kxh7 57. Nxf3 Nxf3+ 58. Kh1 Nh4+ 59. Kh2 Qe2+ 60. Kh3 Bd7+ 61. Kxh4 Qe4+ 62. Qg4 g5+ 63. Kxg5 Bxg4 $19) 56... Nxf3+ 57. Kh1 Nxg1+ 58. Kxg1 Ng5) 55. Re1 {[%emt 0:00:00]} Rf7 {[%emt 0:00:00]} 56. Bc1 {[%emt 0:01:17]} Rf6 {[%emt 0:00:00]} 57. Kg1 {[%emt 0:03:13] [#]} Re6 $1 {[%emt 0:00:00]} 58. Rf1 {[%emt 0:02:02]} Bxd3 {[%emt 0:00:00]} 59. Qxd3 {[%emt 0:00:01]} Ne4 {[%emt 0:00:00]} 60. Qd5 {[%emt 0:00:21]} Nf8 {[%emt 0:00:03]} 61. Nf5 {[%emt 0:00:30]} Qe8 {[%emt 0:00:54]} 62. Nh4 {[%emt 0:01:30]} (62. Bf4 $17 {was forced.}) 62... Nf6 {[%emt 0:00:46]} 63. Qf3 {[%emt 0:00:11]} Re4 {[%emt 0:00:28]} 64. Ng2 {[%emt 0:00:35]} Ne6 {[%emt 0:00:39]} 65. Bb2 {[%emt 0:00:14]} Nd4 {[%emt 0:00:12]} 66. Bxd4 {[%emt 0:00:04]} cxd4 {[%emt 0:00:05]} 67. Rd1 {[%emt 0:00:05]} Qe5 {[%emt 0:00:14]} 68. b4 $2 {[%emt 0:00:22]} (68. Rd3) 68... g5 {[%emt 0:01:11]} 69. c5 {[%emt 0:00:20]} bxc5 {[%emt 0:01:08]} 70. bxc5 {[%emt 0:00:10]} Kg7 {[%emt 0:00:47]} 71. c6 $2 {[%emt 0:00:05]} (71. Rb1 Qxc5 72. Rb7+ Kg6 73. Qd3) 71... Qc5 $2 {[%emt 0:00:26]} (71... Ng4 72. Qxe4 Qxe4) 72. Qg3 $2 {[%emt 0:00:13]} (72. Rf1 Qxc6 73. Qf5) 72... d3+ $2 {[%emt 0:00:57]} (72... Ng4 $19 {and Black stays clearly on top.} 73. Kh1) 73. Kh1 $2 {[%emt 0:00:04]} (73. Qf2 Qxc6 74. Rxd3) 73... Ng4 {[%emt 0:00:18]} 74. c7 {[%emt 0:00:48]} Re6 {[%emt 0:02:16]} 75. Nf4 {[%emt 0:01:20]} Rh6+ {[%emt 0:00:39]} 76. Kg2 {[%emt 0:00:12]} Qc2+ {[%emt 0:00:46] Double Attack} 77. Kf3 {[%emt 0:00:33]} Qxd1+ {[%emt 0:01:16]} 78. Ke4 {[%emt 0:00:04]} Qa4+ {[%emt 0:00:35]} 79. Kf5 {[%emt 0:00:35]} Qd7+ {[%emt 0:00:45]} 80. Kxg5 {[%emt 0:00:48]} Nf6 {[%emt 0:00:27]} 81. Qf3 {[%emt 0:00:30]} Nh7# {[%emt 0:00:07]} 0-1

[Event "WCCC U10 2019"]
[Site "Weifang"]
[Date "2019.08.31"]
[Round "10.3"]
[White "Efimov, Leonid"]
[Black "Bharadia Yash"]
[Result "0-1"]
[ECO "A07"]
[WhiteElo "1773"]
[BlackElo "1963"]
[Annotator "NA"]
[PlyCount "82"]
[EventDate "2019.08.21"]
[EventType "swiss"]
[EventCountry "CHN"]
[SourceTitle "playchess.com"]
[Source "ChessBase"]
[SourceQuality "1"]
[TimeControl "40/5400+30:1800+30"]

1. Nf3 {[%emt 0:00:00]} d5 {[%emt 0:00:00]} 2. g3 {[%emt 0:00:07]} Nf6 {[%emt 0:00:05]} 3. Bg2 {[%emt 0:00:36]} Bg4 {[%emt 0:00:13]} 4. O-O {[%emt 0:00:29]} Nbd7 {[%emt 0:04:45]} 5. d3 {[%emt 0:03:01]} g6 {[%emt 0:09:54]} 6. h3 {[%emt 0:02:45]} Bxf3 {[%emt 0:00:20]} 7. Bxf3 {[%emt 0:00:44]} Bg7 {[%emt 0:01:45]} 8. e4 {[%emt 0:06:50]} dxe4 {[%emt 0:24:37]} 9. dxe4 {[%emt 0:01:22]} e5 {[%emt 0:01:13]} 10. Nd2 {[%emt 0:15:07]} O-O {[%emt 0:02:46]} 11. Qe2 {[%emt 0:03:31]} c6 {[%emt 0:05:22]} 12. Rd1 $14 {[%emt 0:02:33]} Qc7 {[%emt 0:03:16]} 13. Nc4 {[%emt 0:03:33]} b5 {[%emt 0:06:33]} 14. Nd2 {[%emt 0:14:07]} Nc5 {[%emt 0:02:28]} 15. Nb3 {[%emt 0:02:22]} Ne6 {[%emt 0:02:37]} 16. a4 {[%emt 0:06:12]} a6 {[%emt 0:03:27]} 17. Be3 {[%emt 0:01:27]} Rfe8 {[%emt 0:06:07]} 18. Nc5 {[%emt 0:08:12]} Nd4 {[%emt 0:07:56]} 19. Bxd4 {[%emt 0:04:29]} exd4 {[%emt 0:00:09]} 20. axb5 {[%emt 0:03:06]} axb5 {[%emt 0:02:33]} 21. Rxa8 {[%emt 0:01:15]} Rxa8 {[%emt 0:01:14]} 22. Nb3 {[%emt 0:09:44]} Rd8 {[%emt 0:06:21]} 23. Nxd4 {[%emt 0:01:59]} Nd7 {[%emt 0:01:12]} 24. c3 {[%emt 0:01:40]} Ne5 {[%emt 0:00:27]} 25. Bg2 {[%emt 0:00:28]} Qd7 {[%emt 0:00:12]} 26. Ra1 {[%emt 0:00:47]} Nc4 {[%emt 0:00:29]} 27. b3 {[%emt 0:00:37]} Bxd4 {[%emt 0:00:32]} 28. cxd4 {[%emt 0:03:20]} Qxd4 {[%emt 0:00:26]} 29. Rc1 {[%emt 0:00:57]} Ne5 {[%emt 0:00:59]} 30. g4 {[%emt 0:01:42]} Qd6 {[%emt 0:03:42]} 31. Bf1 {[%emt 0:01:03]} g5 {[%emt 0:01:11]} 32. Qe3 {[%emt 0:00:55]} Qf6 {[%emt 0:00:43]} 33. Be2 {[%emt 0:00:32]} h6 {[%emt 0:01:53]} 34. Qb6 {[%emt 0:00:46]} Rd2 {[%emt 0:00:46]} 35. Qe3 {[%emt 0:00:30]} Qf4 {[%emt 0:00:12]} 36. Rc3 {[%emt 0:00:23]} b4 {[%emt 0:00:35]} 37. Qxf4 {[%emt 0:00:41]} gxf4 {[%emt 0:00:11]} 38. Rc5 {[%emt 0:00:02]} Nd7 {[%emt 0:00:19]} 39. Rxc6 {[%emt 0:00:29]} Rxe2 {[%emt 0:00:08]} 40. Rxh6 {[%emt 0:00:08]} Rb2 {[%emt 0:00:59]} 41. Rd6 {[%emt 0:30:20]} Nc5 {[%emt 0:30:39]} 0-1

[Event "WCCC U10 2019"]
[Site "Weifang"]
[Date "2019.08.31"]
[Round "10.4"]
[White "Han, Johnathan"]
[Black "Materia, Marco"]
[Result "0-1"]
[ECO "C55"]
[WhiteElo "1579"]
[BlackElo "2236"]
[Annotator "NA"]
[PlyCount "62"]
[EventDate "2019.08.21"]
[EventType "swiss"]
[EventCountry "CHN"]
[SourceTitle "playchess.com"]
[Source "ChessBase"]
[SourceQuality "1"]
[TimeControl "40/5400+30:1800+30"]

{[%evp 12,54,36,40,46,20,52,4,18,0,17,2,10,0,27,14,32767,32767,32767,32767,32767,32767,25,16,20,14,22,21,13,14,32767,32767,-23,32767,32767,32767,-130,32767,32767,32767,32767,-664,-186,-704,-716]} 1. e4 {[%emt 0:00:00]} e5 {[%emt 0:00:00]} 2. Nf3 {[%emt 0:00:14]} Nc6 {[%emt 0:00:00]} 3. Bc4 {[%emt 0:00:44]} Nf6 {[%emt 0:00:00]} 4. d3 {[%emt 0:00:32]} h6 {[%emt 0:00:00]} 5. O-O {[%emt 0:00:22]} d6 {[%emt 0:00:02]} 6. a4 {[%emt 0:00:41]} g6 {[%emt 0:01:05] C55: Two Knights: 4 d3, 4 d4 exd4 5 e5 and Max Lange Attack} (6... g5 7. Nc3 Bg7 8. a5 a6 9. Nd5 O-O 10. Ne3 Ne7 11. h4 g4 12. Nh2 h5 13. g3 c6 14. f3 {1-0 (33) Svidler,P (2737)-Matlakov,M (2700) St Petersburg 2018}) 7. Nbd2 {[%emt 0:04:43]} Bg7 {[%emt 0:00:12]} 8. Re1 {[%emt 0:00:42]} O-O {[%emt 0:00:17]} 9. Ba2 {[%emt 0:03:12]} Nb4 $146 {[%emt 0:01:15]} ({Predecessor:} 9... Kh7 10. Nc4 Nh5 11. Ne3 Nf4 12. Nd5 Nxd5 13. exd5 Ne7 14. d4 exd4 15. Nxd4 {0-1 (49) Pitcher,J (2246)-Wall,G (2333) Daventry 2013}) 10. Bc4 {[%emt 0:01:01]} c5 {[%emt 0:01:06]} 11. c3 {[%emt 0:00:31]} Nc6 {[%emt 0:00:22]} 12. Ba2 {[%emt 0:03:33]} Kh8 {[%emt 0:05:06]} 13. Nc4 {[%emt 0:04:00]} Be6 {[%emt 0:07:18]} 14. Bd2 {[%emt 0:04:08]} a6 {[%emt 0:04:22]} 15. b4 {[%emt 0:06:55]} b5 {[%emt 0:02:15]} 16. Ne3 {[%emt 0:09:31]} cxb4 {[%emt 0:10:24]} 17. cxb4 {[%emt 0:00:55]} Rc8 {[%emt 0:03:47]} 18. Bxe6 {[%emt 0:09:18]} fxe6 {[%emt 0:00:08]} 19. axb5 {[%emt 0:00:29]} axb5 {[%emt 0:00:07]} 20. Ra6 {[%emt 0:01:20]} Nh5 {[%emt 0:02:13]} 21. Nf1 {[%emt 0:03:11]} Nf4 {[%emt 0:04:30]} 22. Bxf4 {[%emt 0:09:28]} Rxf4 {[%emt 0:15:03]} 23. g3 {[%emt 0:12:30]} Rf7 {[%emt 0:10:21]} 24. Ne3 {[%emt 0:13:21]} Nxb4 {[%emt 0:02:23]} 25. Ra3 {[%emt 0:00:26]} Qf6 {[%emt 0:01:30]} 26. Nh4 $2 {[%emt 0:03:08]} (26. Kg2) 26... Qxf2+ {[%emt 0:06:06]} 27. Kh1 {[%emt 0:00:14]} Nc2 $19 {[%emt 0:00:54]} 28. Re2 {[%emt 0:03:08]} Nxe3 {[%emt 0:00:20]} 29. Rxf2 {[%emt 0:01:01]} Rxf2 {[%emt 0:00:11]} 30. Nxg6+ {[%emt 0:01:07]} Kh7 {[%emt 0:00:42]} 31. Qe1 {[%emt 0:01:20]} Rf1+ {[%emt 0:00:40]} 0-1